fUST/lending_fUST_20251227
["ID","MTS","AMOUNT","RATE_DAILY","PERIOD"]
[399866638,1766776232857,-180.834,0.00021475,2]
[399866640,1766776232867,-151.0,0.00021489,2]
[399866642,1766776232876,-151.0,0.00021489,2]
[399866644,1766776232886,-4804.26415016,0.00021492,2]
[399866646,1766776232896,-151.0,0.00021499,2]
[399866648,1766776232905,-151.0,0.00021499,2]
[399866650,1766776232916,-161.65,0.000215,2]
[399866652,1766776232930,-175.2,0.000215,2]
[399866654,1766776232940,-44.0981284,0.00021509,2]
[399866726,1766776346724,150.0,0.00012374,2]
[399866727,1766776347174,150.0,0.00013498,2]
[399866728,1766776347563,150.0,0.00014623,2]
[399866729,1766776347968,150.0,0.00015748,2]
[399866730,1766776416343,150.0,0.00012523,2]
[399866731,1766776416718,150.0,0.00013662,2]
[399866732,1766776417907,-150.0,0.000148,2]
[399866733,1766776446253,5000.0,0.000148,2]
[399866734,1766776469171,4700.01,0.000148,2]
[399866735,1766776469196,299.99,0.000148,2]
[399866736,1766776483171,150.0,0.00012396,2]
[399866737,1766776483577,150.0,0.00013523,2]
[399866738,1766776483953,150.0,0.0001465,2]
[399866739,1766776492496,801.80205749,0.000148,2]
[399866742,1766776895375,505.08542398,0.000148,2]
[399866745,1766777133160,-227.87963565,0.0001505,2]
[399866751,1766777241118,-272.12036435,0.0001505,2]
[399866752,1766777241139,-101.47178182,0.0001505,2]
[399866759,1766777349107,-534.52821818,0.0001505,2]
[399866760,1766777349130,-283.42065318,0.00015148,2]
[399866761,1766777353558,361.765061,0.00013699,2]
[399866762,1766777359129,-334.43637075,0.00017148,2]
[399866763,1766777359150,-1041.66666667,0.00017608,2]
[399866764,1766777359170,-999.0,0.00017633,2]
[399866765,1766777359190,-385.45208832,0.00019148,2]
[399866766,1766777359210,-3603.19811262,0.00019433,2]
[399866767,1766777359233,-300.0,0.00019531,2]
[399866768,1766777359254,-300.0,0.00019531,2]
[399866769,1766777359276,-3155.6611082,0.00019532,2]
[399866770,1766777370127,-518.26695252,0.00019532,2]
[399866840,1766777437864,-300.0,0.00019531,2]
[399866841,1766777437880,-9602.15284415,0.00019532,2]
[399866842,1766777437895,-36723.91909513,0.00019532,2]
[399866843,1766777437907,-1041.66666667,0.00019532,2]
[399866844,1766777437918,-394.84854755,0.00019725,2]
[399866845,1766777437930,-347.02780113,0.00019787,2]
[399866846,1766777437942,-396.60320129,0.00019787,2]
[399866847,1766777437955,-619.07280952,0.00019787,2]
[399866848,1766777437969,-338.8608619,0.00019931,2]
[399866849,1766777437981,-2812.9708115,0.00019964,2]
[399866850,1766777437993,-1309.4635505,0.00019964,2]
[399866851,1766777438011,-618.3637178,0.00019972,2]
[399866852,1766777438022,-600.0,0.0002003,2]
[399866853,1766777438034,-556.508,0.00020041,2]
[399866854,1766777438046,-416.0,0.00020041,2]
[399866855,1766777438057,-29.02698976,0.00020187,2]
[399866856,1766777438072,-316.91402012,0.00020187,2]
[399866860,1766777439953,-15.82405112,0.00020187,2]
[399866861,1766777439965,-344.16870572,0.00020763,2]
[399866862,1766777439980,-83.90000569,0.00020763,2]
[399866863,1766777439992,-429.97099108,0.00020829,2]
[399866864,1766777440003,-671.15784389,0.00020829,2]
[399866865,1766777440016,-306.46009363,0.00020829,2]
[399866866,1766777440028,-151.0,0.00020829,2]
[399866867,1766777440040,-308.6472383,0.00020908,2]
[399866868,1766777440052,-183.9666937,0.00020908,2]
[399866869,1766777440064,-1206.2649436,0.00020908,2]
[399866870,1766777440076,-183.9666937,0.00020908,2]
[399866871,1766777440088,-273.3759424,0.00020908,2]
[399866872,1766777440100,-183.9666937,0.00020908,2]
[399866873,1766777440112,-436.46780589,0.00021148,2]
[399866874,1766777440123,-420.0,0.00021277,2]
[399866875,1766777440135,-461.67526834,0.0002134,2]
[399866876,1766777440152,-180.81,0.00021499,2]
[399866877,1766777440164,-151.0,0.0002152,2]
[399866878,1766777440176,-151.0,0.0002152,2]
[399866879,1766777440189,-151.0,0.0002152,2]
[399866880,1766777440202,-151.0,0.0002152,2]
[399866881,1766777440213,-375.9334429,0.0002152,2]
[399866882,1766777440226,-151.0,0.00021537,2]
[399866883,1766777440238,-151.0,0.00021537,2]
[399866884,1766777440253,-151.0,0.00021537,2]
[399866885,1766777440266,-151.0,0.00021537,2]
[399866886,1766777440279,-363.60256585,0.00021537,2]
[399866887,1766777440292,-163.86,0.00021605,3]
[399866888,1766777440303,-506.580021,0.00021795,2]
[399866889,1766777440316,-500.0,0.00021856,7]
[399866890,1766777440330,-495.8392382,0.00021888,2]
[399866891,1766777440342,-300.0,0.00021918,2]
[399866892,1766777440354,-167.92943238,0.00021925,2]
[399866893,1766777440366,-302.27297828,0.00021925,2]
[399866894,1766777440379,-304.8596941,0.00021925,2]
[399866895,1766777440390,-548.74744938,0.00021925,2]
[399866896,1766777440402,-163.18843833,0.00021925,2]
[399866897,1766777440413,-293.73918899,0.00021925,2]
[399866898,1766777440425,-618.3637178,0.00021971,2]
[399866899,1766777440436,-338.8608619,0.0002201,2]
[399866900,1766777440449,-720.0,0.00022033,10]
[399866901,1766777440461,-537.37418361,0.00022139,2]
[399866902,1766777440474,-151.0,0.00022166,2]
[399866903,1766777440486,-151.0,0.00022166,2]
[399866904,1766777440497,-151.0,0.00022166,2]
[399866905,1766777440509,-230.314785,0.00022166,2]
[399866906,1766777440521,-151.0,0.00022176,2]
[399866907,1766777440532,-151.0,0.00022176,2]
[399866908,1766777440544,-151.0,0.00022176,2]
[399866909,1766777440555,-151.0,0.00022186,2]
[399866910,1766777440566,-151.0,0.00022186,2]
[399866911,1766777440578,-151.0,0.00022186,2]
[399866912,1766777440589,-151.0,0.00022216,2]
[399866913,1766777440600,-151.0,0.00022216,2]
[399866914,1766777440611,-151.0,0.00022216,2]
[399866915,1766777440622,-151.0,0.00022216,2]
[399866916,1766777440637,-151.0,0.00022225,2]
[399866917,1766777440649,-975.55102112,0.00022225,2]
[399866918,1766777440660,-522.20300265,0.00022225,2]
[399866919,1766777440673,-151.0,0.00022226,2]
[399866920,1766777440685,-151.0,0.00022226,2]
[399866921,1766777440696,-151.0,0.00022226,2]
[399866922,1766777440708,-151.0,0.00022226,2]
[399866923,1766777440719,-151.0,0.00022226,2]
[399866924,1766777440731,-151.0,0.00022236,2]
[399866925,1766777440742,-151.0,0.00022236,2]
[399866926,1766777440753,-151.0,0.00022236,2]
[399866927,1766777440765,-188.245025,0.00022236,2]
[399866928,1766777440776,-151.0,0.00022246,2]
[399866929,1766777440788,-151.0,0.00022246,2]
[399866930,1766777440799,-151.0,0.00022246,2]
[399866931,1766777440812,-9803.88546093,0.00022298,10]
[399866932,1766777443981,-4182.0,0.00022298,10]
[399866938,1766777445788,-29125.61380679,0.00022298,10]
[399866940,1766777525625,500.0,0.00013273,2]
[399866941,1766777528033,500.0,0.00013273,2]
[399866942,1766777584308,500.0,0.00013273,2]
[399866943,1766777584455,560.38354727,0.00013273,2]
[399866944,1766777587344,500.0,0.00013273,2]
[399866945,1766777587468,500.0,0.00013273,2]
[399866946,1766777587499,500.0,0.00013273,2]
[399866947,1766777591538,500.0,0.00013273,2]
[399866948,1766777599221,500.0,0.00013273,2]
[399866949,1766777600603,500.0,0.00013273,2]
[399866950,1766777601048,300.0,0.00013673,2]
[399866951,1766777610845,500.0,0.00013273,2]
[399866952,1766777611585,202.90378031,0.00013273,2]
[399866953,1766777612126,336.32344212,0.00013273,2]
[399866954,1766777614357,500.0,0.00013273,2]
[399866956,1766777644185,500.98764701,0.00013699,2]
[399866957,1766777645917,161.04477429,0.00013699,2]
[399866958,1766777645945,500.0,0.00013699,2]
[399866959,1766777646025,500.0,0.00013273,2]
[399866960,1766777646720,500.52171397,0.00013699,2]
[399866961,1766777647418,500.76279856,0.00013699,2]
[399866962,1766777647639,500.12496546,0.00013699,2]
[399866963,1766777647838,501.2126787,0.00013699,2]
[399866964,1766777703243,260.08136731,0.00013699,2]
[399866965,1766777703876,500.46970248,0.00013273,2]
[399866966,1766777703929,500.43832967,0.00013699,2]
[399866967,1766777704399,346.25200149,0.00013699,2]
[399866968,1766777704754,500.16233957,0.00013699,2]
[399866969,1766777705957,501.40733377,0.00013699,2]
[399866970,1766777705985,500.0,0.00013273,2]
[399866971,1766777706020,887.31712529,0.00013821,2]
[399866972,1766777706042,112.68287471,0.00013821,2]
[399866973,1766777706137,157.09460018,0.00013699,2]
[399866974,1766777707021,500.0,0.00013273,2]
[399866975,1766777707052,500.0,0.00013699,2]
[399866976,1766777707083,1000.0,0.00013821,2]
[399866977,1766777707116,502.68659046,0.00013699,2]
[399866978,1766777708823,500.0988149,0.00013699,2]
[399866979,1766777708924,500.1765937,0.00013699,2]
[399866980,1766777709980,500.67343957,0.00013699,2]
[399866981,1766777710112,177.97640411,0.00013699,2]
[399866982,1766777710144,500.0,0.00013273,2]
[399866983,1766777710232,500.0,0.00013273,2]
[399866984,1766777710286,500.0,0.00013821,2]
[399866985,1766777714419,500.24781448,0.00013699,2]
[399866986,1766777715569,500.39251583,0.00013699,2]
[399866987,1766777716108,500.71064825,0.00013699,2]
[399866988,1766777716326,500.54754333,0.00013699,2]
[399866989,1766777716768,500.32232428,0.00013699,2]
[399866990,1766777717167,500.0,0.00013821,2]
[399866991,1766777717218,500.0,0.00013273,2]
[399866992,1766777718182,500.71188809,0.00013699,2]
[399866993,1766777718361,45.68794811,0.00013699,2]
[399866994,1766777718385,454.51027086,0.00013699,2]
[399866995,1766777718422,159.33099895,0.00013699,2]
[399866996,1766777719256,500.69817016,0.00013699,2]
[399866997,1766777719368,500.0,0.00013273,2]
[399866998,1766777719425,500.0,0.00013821,2]
[399866999,1766777719464,455.65980227,0.00013699,2]
[399867000,1766777719886,500.30541626,0.00013699,2]
[399867001,1766777721067,524.47276149,0.00013699,2]
[399867002,1766777723069,500.81848271,0.00013699,2]
[399867003,1766777723595,500.86759667,0.00013699,2]
[399867004,1766777723628,514.1181456,0.00013699,2]
[399867005,1766777723902,500.71314096,0.00013699,2]
[399867006,1766777724096,500.5438368,0.00013699,2]
[399867007,1766777724430,500.20372006,0.00013699,2]
[399867008,1766777724808,500.65201175,0.00013699,2]
[399867009,1766777724981,500.21096552,0.00013699,2]
[399867010,1766777725318,166.07175525,0.00013699,2]
[399867011,1766777725932,500.60193281,0.00013699,2]
[399867012,1766777726571,500.85020736,0.00013699,2]
[399867013,1766777726644,500.77324333,0.00013699,2]
[399867014,1766777727051,500.80737213,0.00013699,2]
[399867015,1766777727389,500.0,0.00013273,2]
[399867016,1766777727419,500.77567295,0.00013699,2]
[399867017,1766777727876,523.37596919,0.00013699,2]
[399867018,1766777728222,518.49507383,0.00013699,2]
[399867019,1766777728250,502.56023121,0.00013699,2]
[399867020,1766777728715,173.27386992,0.00013699,2]
[399867021,1766777729028,339.91326088,0.00013699,2]
[399867022,1766777729545,500.0,0.00013273,2]
[399867023,1766777729600,500.0,0.00013821,2]
[399867024,1766777730351,636.35635846,0.00013699,2]
[399867025,1766777730857,500.50602205,0.00013699,2]
[399867026,1766777730888,500.14006718,0.00013699,2]
[399867027,1766777731141,500.14227673,0.00013699,2]
[399867028,1766777731449,534.5163648,0.00013699,2]
[399867029,1766777732699,500.45830526,0.00013699,2]
[399867030,1766777732727,500.0,0.00013273,2]
[399867031,1766777732755,500.0,0.00013821,2]
[399867032,1766777764491,164.93787806,0.00013699,2]
[399867033,1766777765483,102.12782666,0.00013821,2]
[399867034,1766777765508,397.87217334,0.00013821,2]
[399867035,1766777765537,500.0,0.00013273,2]
[399867036,1766777823592,500.48051435,0.00013699,2]
[399867037,1766777823774,500.58993607,0.00013699,2]
[399867038,1766777823804,500.82646105,0.00013699,2]
[399867039,1766777823832,500.0,0.00013273,2]
[399867040,1766777824047,1001.13148739,0.00013821,2]
[399867041,1766777824096,500.72648042,0.00013699,2]
[399867042,1766777824124,1001.7028626,0.00013821,2]
[399867043,1766777824151,500.0,0.00013273,2]
[399867044,1766777824179,500.38980341,0.00013699,2]
[399867045,1766777826923,500.47534546,0.00013699,2]
[399867046,1766777827057,158.29532807,0.00013699,2]
[399867047,1766777827084,160.23984667,0.00013699,2]
[399867048,1766777827327,260.10028085,0.00013699,2]
[399867049,1766777827739,500.64205712,0.00013699,2]
[399867050,1766777827880,160.0964089,0.00013699,2]
[399867051,1766777828668,158.29532465,0.00013699,2]
[399867052,1766777828698,500.70711607,0.00013699,2]
[399867053,1766777828766,158.29532296,0.00013699,2]
[399867054,1766777829028,158.29532563,0.00013699,2]
[399867055,1766777829906,237.71063649,0.00013699,2]
[399867056,1766777830636,298.37968298,0.00013699,2]
[399867059,1766777883723,344.75760552,0.00013699,2]
[399867060,1766777883747,155.36324262,0.00013699,2]
[399867061,1766777886474,500.79658633,0.00013699,2]
[399867062,1766777886606,500.18962302,0.00013699,2]
[399867063,1766777886633,501.38295582,0.00013699,2]
[399867064,1766777886774,500.1559194,0.00013699,2]
[399867065,1766777886984,500.18852612,0.00013699,2]
[399867066,1766777887142,500.66657125,0.00013699,2]
[399867067,1766777887169,500.0,0.00013273,2]
[399867068,1766777887211,500.0,0.00013821,2]
[399867069,1766777887240,500.91915273,0.00013699,2]
[399867070,1766777887268,158.29532656,0.00013699,2]
[399867071,1766777943778,158.09520286,0.00013699,2]
[399867072,1766777943912,500.22844769,0.00013699,2]
[399867073,1766777943944,416.51754298,0.00013699,2]
[399867074,1766777943990,158.29532284,0.00013699,2]
[399867075,1766777944046,158.09520455,0.00013699,2]
[399867076,1766777944081,158.2961913,0.00013699,2]
[399867077,1766777944163,160.06056591,0.00013699,2]
[399867078,1766778004308,3472.46361802,0.00012516,2]
[399867079,1766778004332,3105.92545057,0.00012516,2]
[399867080,1766778004604,5000.0,0.00012516,2]
[399867081,1766778004954,1894.08454943,0.00012516,2]
[399867082,1766778004978,3105.91545057,0.00012516,2]
[399867083,1766778034031,1005.33,0.00030137,120]
[399867084,1766778063659,159.58364479,0.00013699,2]
[399867085,1766778063687,500.23104155,0.00013699,2]
[399867086,1766778063714,500.79026071,0.00013273,2]
[399867087,1766778063795,500.0,0.00013273,2]
[399867088,1766778063843,1000.0,0.00013821,2]
[399867089,1766778063871,500.69760371,0.00013699,2]
[399867090,1766778063907,500.36523038,0.00013699,2]
[399867091,1766778064092,500.36736325,0.00013699,2]
[399867092,1766778066056,1000.0,0.00013821,2]
[399867093,1766778066084,500.34708453,0.00013699,2]
[399867094,1766778066322,500.48361452,0.00013699,2]
[399867095,1766778066351,500.0,0.00013273,2]
[399867096,1766778123592,500.18389688,0.00013699,2]
[399867097,1766778124943,500.27383829,0.00013699,2]
[399867098,1766778124972,500.60644971,0.00013699,2]
[399867099,1766778125009,500.1688107,0.00013699,2]
[399867100,1766778125037,538.19055083,0.00013273,2]
[399867102,1766778183802,500.98003086,0.00013699,2]
[399867103,1766778183830,501.66221682,0.00013273,2]
[399867104,1766778183856,500.0,0.00013273,2]
[399867105,1766778183885,500.0,0.00013699,2]
[399867106,1766778183918,1000.0,0.00013821,2]
[399867107,1766778183950,500.39031559,0.00013699,2]
[399867108,1766778183984,1000.0,0.00013821,2]
[399867109,1766778184021,500.0,0.00013273,2]
[399867110,1766778184093,-172.0471291,0.00014632,2]
[399867111,1766778244000,500.90310812,0.00013699,2]
[399867112,1766778244029,303.74823233,0.00013699,2]
[399867113,1766778244056,500.0,0.00013699,2]
[399867114,1766778245796,501.17319375,0.00013699,2]
[399867115,1766778245840,500.0,0.00013273,2]
[399867116,1766778245871,500.90192695,0.00013699,2]
[399867117,1766778245899,500.0,0.00013273,2]
[399867118,1766778245926,500.56383034,0.00013699,2]
[399867119,1766778245954,500.0,0.00013273,2]
[399867120,1766778245983,500.0,0.00013821,2]
[399867121,1766778246012,500.0,0.00013821,2]
[399867122,1766778246040,500.0,0.00013821,2]
[399867123,1766778246096,565.21281238,0.00013699,2]
[399867124,1766778303598,500.52505764,0.00013699,2]
[399867125,1766778303868,500.0,0.00013821,2]
[399867126,1766778303897,500.0,0.00013699,2]
[399867127,1766778303930,500.0,0.00014247,2]
[399867128,1766778303959,500.0,0.00013273,2]
[399867129,1766778345290,-707.68351049,0.000166,2]
[399867130,1766778346125,-185.86679412,0.000166,2]
[399867131,1766778423729,500.21924587,0.00013699,2]
[399867132,1766778424349,500.14191472,0.00013699,2]
[399867133,1766778483783,126.6206779,0.00013699,2]
[399867134,1766778483811,373.75771326,0.00013699,2]
[399867135,1766778543684,500.41655984,0.00013699,2]
[399867136,1766778543768,535.75485522,0.00013273,2]
[399867137,1766778543849,500.0,0.00013273,2]
[399867138,1766778543881,159.6640123,0.00013699,2]
[399867139,1766778543913,500.0,0.00013821,2]
[399867140,1766778545084,-5000.0,0.00016434,2]
[399867141,1766778545110,-298.5446029,0.00016684,2]
[399867142,1766778545131,-665.0,0.00016768,2]
[399867143,1766778545151,-428.06871141,0.00016912,2]
[399867144,1766778545173,-216.0,0.0001696,2]
[399867145,1766778545194,-300.0,0.0001696,2]
[399867146,1766778545217,-300.0,0.0001696,2]
[399867147,1766778545239,-300.0,0.00016961,2]
[399867148,1766778545260,-1200.0,0.00016961,2]
[399867149,1766778545281,-4087.2883306,0.00016962,2]
[399867150,1766778545302,-883.30732129,0.00016964,2]
[399867151,1766778545323,-500.0,0.00016964,2]
[399867152,1766778545343,-216.51341732,0.00016964,2]
[399867153,1766778545363,-370.51419191,0.00016964,2]
[399867154,1766778545386,-883.30732129,0.00016964,2]
[399867155,1766778545408,-883.30732129,0.00016964,2]
[399867156,1766778545430,-883.30732129,0.00016964,2]
[399867157,1766778545452,-883.30732129,0.00016964,2]
[399867158,1766778545476,-883.30732129,0.00016964,2]
[399867159,1766778545498,-883.30732129,0.00016964,2]
[399867160,1766778545518,-883.30732129,0.00016964,2]
[399867161,1766778545543,-883.30732129,0.00016964,2]
[399867162,1766778545564,-883.30732129,0.00016964,2]
[399867163,1766778545587,-883.30732129,0.00016964,2]
[399867164,1766778545609,-883.30732129,0.00016964,2]
[399867165,1766778545633,-883.30732129,0.00016964,2]
[399867166,1766778545655,-883.30732129,0.00016964,2]
[399867167,1766778545677,-883.30732129,0.00016964,2]
[399867168,1766778545699,-883.30732129,0.00016964,2]
[399867169,1766778545721,-883.30732129,0.00016964,2]
[399867170,1766778545743,-883.30732129,0.00016964,2]
[399867171,1766778545765,-883.30732129,0.00016964,2]
[399867172,1766778545787,-883.30732129,0.00016964,2]
[399867173,1766778545808,-883.30732129,0.00016964,2]
[399867174,1766778545829,-883.30732129,0.00016964,2]
[399867175,1766778545851,-883.30732129,0.00016964,2]
[399867176,1766778545872,-883.30732129,0.00016964,2]
[399867177,1766778545894,-883.30732129,0.00016964,2]
[399867178,1766778545915,-883.30732129,0.00016964,2]
[399867179,1766778545937,-883.30732129,0.00016964,2]
[399867180,1766778545959,-883.30732129,0.00016964,2]
[399867181,1766778545982,-883.30732129,0.00016964,2]
[399867182,1766778546003,-883.30732129,0.00016964,2]
[399867183,1766778546023,-500.0,0.00016964,2]
[399867184,1766778546045,-500.0,0.00016964,2]
[399867185,1766778546067,-500.0,0.00016964,2]
[399867186,1766778546088,-500.0,0.00016964,2]
[399867187,1766778546109,-388.69353178,0.00016964,2]
[399867188,1766778546131,-500.0,0.00016964,2]
[399867189,1766778546151,-500.0,0.00016964,2]
[399867190,1766778546173,-500.0,0.00016964,2]
[399867191,1766778546196,-500.0,0.00016964,2]
[399867192,1766778546219,-500.0,0.00016964,2]
[399867193,1766778546252,-500.0,0.00016964,2]
[399867194,1766778546278,-500.0,0.00016964,2]
[399867195,1766778546301,-316.96366719,0.00016964,2]
[399867196,1766778546323,-500.0,0.00016964,2]
[399867197,1766778546345,-500.0,0.00016964,2]
[399867198,1766778546626,-500.0,0.00016964,2]
[399867199,1766778546648,-500.0,0.00016964,2]
[399867200,1766778546669,-500.0,0.00016964,2]
[399867201,1766778546697,-500.0,0.00016964,2]
[399867202,1766778546718,-500.0,0.00016964,2]
[399867203,1766778546741,-461.86211493,0.00016964,2]
[399867204,1766778546761,-500.0,0.00016964,2]
[399867205,1766778546783,-650.50930027,0.00016964,2]
[399867206,1766778546803,-500.0,0.00016964,2]
[399867207,1766778546823,-500.0,0.00016964,2]
[399867208,1766778546843,-546.11402387,0.00016964,2]
[399867209,1766778546863,-500.0,0.00016964,2]
[399867210,1766778546884,-500.0,0.00016964,2]
[399867211,1766778546904,-500.0,0.00016964,2]
[399867212,1766778546925,-500.0,0.00016964,2]
[399867213,1766778546946,-500.0,0.00016964,2]
[399867214,1766778546967,-499.99999999,0.00016964,2]
[399867215,1766778546989,-883.30732129,0.00016964,2]
[399867216,1766778547014,-883.30732129,0.00016964,2]
[399867217,1766778547037,-883.30732129,0.00016964,2]
[399867218,1766778547059,-671.15784389,0.00016965,2]
[399867219,1766778547081,-33608.03174002,0.00016965,2]
[399867220,1766778547146,-16391.96825998,0.00016965,2]
[399867221,1766778547167,-181.01974229,0.00017033,2]
[399867222,1766778547187,-165.11072628,0.00017036,2]
[399867223,1766778547207,-4183.61423815,0.0001706,2]
[399867224,1766778547227,-963.62966267,0.00017063,2]
[399867225,1766778547247,-3840.798125,0.00017119,2]
[399867226,1766778547267,-210.707536,0.0001716,2]
[399867227,1766778547288,-151.0,0.0001716,2]
[399867228,1766778547310,-151.0,0.0001716,2]
[399867229,1766778547331,-151.0,0.0001716,2]
[399867230,1766778547351,-151.0,0.0001716,2]
[399867231,1766778547371,-151.0,0.0001716,2]
[399867232,1766778547391,-151.0,0.0001716,2]
[399867233,1766778547411,-151.0,0.0001716,2]
[399867234,1766778547431,-151.0,0.0001716,2]
[399867235,1766778547451,-167.465424,0.0001716,2]
[399867236,1766778547470,-167.465424,0.0001716,2]
[399867237,1766778547489,-167.465424,0.0001716,2]
[399867238,1766778547508,-151.128009,0.0001716,2]
[399867239,1766778547528,-167.465424,0.0001716,2]
[399867240,1766778547553,-174.175971,0.0001716,2]
[399867241,1766778547572,-372.35855,0.0001716,2]
[399867242,1766778547592,-372.35855,0.0001716,2]
[399867243,1766778547612,-372.35855,0.0001716,2]
[399867244,1766778547634,-372.35855,0.0001716,2]
[399867245,1766778547655,-151.0,0.0001716,2]
[399867246,1766778547675,-151.0,0.00017161,2]
[399867247,1766778547695,-151.0,0.00017161,2]
[399867248,1766778547717,-288.950111,0.00017161,2]
[399867249,1766778547737,-151.0,0.00017161,2]
[399867250,1766778547760,-151.0,0.00017161,2]
[399867251,1766778547787,-151.0,0.00017161,2]
[399867252,1766778547807,-571.342308,0.00017161,2]
[399867253,1766778547828,-219.470914,0.00017161,2]
[399867254,1766778547848,-571.342308,0.00017161,2]
[399867255,1766778547868,-571.342308,0.00017161,2]
[399867256,1766778547889,-571.342308,0.00017161,2]
[399867257,1766778547909,-2014.298836,0.00017161,2]
[399867258,1766778547929,-151.0,0.00017161,2]
[399867259,1766778547951,-2014.298836,0.00017161,2]
[399867260,1766778547972,-151.0,0.00017161,2]
[399867261,1766778547993,-2014.298836,0.00017161,2]
[399867262,1766778548014,-2014.298836,0.00017161,2]
[399867263,1766778548035,-175.522005,0.00017161,2]
[399867264,1766778548056,-151.065773,0.00017161,2]
[399867265,1766778548077,-151.0,0.00017161,2]
[399867266,1766778548098,-159.538536,0.00017161,2]
[399867267,1766778548119,-151.0,0.00017161,2]
[399867268,1766778548140,-151.0,0.00017161,2]
[399867269,1766778548161,-151.0,0.00017161,2]
[399867270,1766778548181,-151.0,0.00017161,2]
[399867271,1766778548205,-167.465424,0.00017161,2]
[399867272,1766778548227,-167.465424,0.00017161,2]
[399867273,1766778548247,-167.465424,0.00017161,2]
[399867274,1766778548267,-167.465424,0.00017161,2]
[399867275,1766778548286,-372.35855,0.00017161,2]
[399867276,1766778548305,-372.35855,0.00017161,2]
[399867277,1766778548326,-372.35855,0.00017161,2]
[399867278,1766778548345,-372.35855,0.00017161,2]
[399867279,1766778548365,-151.0,0.00017162,2]
[399867280,1766778548386,-151.0,0.00017162,2]
[399867281,1766778548407,-151.0,0.00017162,2]
[399867282,1766778548429,-151.0,0.00017162,2]
[399867283,1766778548448,-151.0,0.00017162,2]
[399867284,1766778548468,-571.342308,0.00017162,2]
[399867285,1766778548489,-571.342308,0.00017162,2]
[399867286,1766778548510,-571.342308,0.00017162,2]
[399867287,1766778548531,-571.342308,0.00017162,2]
[399867288,1766778548554,-2014.298836,0.00017162,2]
[399867289,1766778548575,-151.0,0.00017162,2]
[399867290,1766778548598,-2014.298836,0.00017162,2]
[399867291,1766778548619,-151.0,0.00017162,2]
[399867292,1766778548639,-2014.298836,0.00017162,2]
[399867293,1766778548660,-2014.298836,0.00017162,2]
[399867294,1766778548680,-291.760973,0.00017162,2]
[399867295,1766778548700,-151.0,0.00017162,2]
[399867296,1766778548722,-160.363833,0.00017162,2]
[399867297,1766778548743,-151.0,0.00017162,2]
[399867298,1766778548764,-151.0,0.00017162,2]
[399867299,1766778548787,-151.0,0.00017162,2]
[399867300,1766778548808,-151.0,0.00017162,2]
[399867301,1766778548830,-151.0,0.00017162,2]
[399867302,1766778548851,-239.000149,0.00017162,2]
[399867303,1766778548871,-151.0,0.00017162,2]
[399867304,1766778548890,-151.0,0.00017162,2]
[399867305,1766778548911,-151.0,0.00017162,2]
[399867306,1766778548931,-167.465424,0.00017162,2]
[399867307,1766778548952,-167.465424,0.00017162,2]
[399867308,1766778548972,-167.465424,0.00017162,2]
[399867309,1766778549008,-167.465424,0.00017162,2]
[399867310,1766778549030,-372.35855,0.00017162,2]
[399867311,1766778549051,-372.35855,0.00017162,2]
[399867312,1766778549072,-372.35855,0.00017162,2]
[399867313,1766778549093,-372.35855,0.00017162,2]